bitfinex-derivatives/quotes_ETHF0:USTF0_20250314
["timestamp","ask_amount","ask_price","bid_price","bid_amount"]
[1741962620362,1.04667,1911.0,1910.8,1.04676]
[1741962620675,1.04674,1910.9,1910.7,3.2078]
[1741962620972,11.4282,1911.1,1910.7,3.2078]
[1741962621273,11.4282,1911.1,1910.8,6.8189]
[1741962621571,3.2078,1911.3,1910.8,6.8189]
[1741962621765,3.2078,1911.3,1911.0,1.04664]
[1741962621766,1.04662,1911.1,1911.0,1.04664]
[1741962622166,2.61664,1911.0,1910.1,3.2078]
[1741962622362,16.75705,1911.0,1910.2,12.3734]
[1741962622674,1.04703,1910.3,1910.2,12.3734]
[1741962623874,1.05487308,1910.4,1910.2,13.42047]
[1741962624074,0.00786308,1910.4,1910.2,13.42047]
[1741962624278,0.00786308,1910.4,1910.2,12.3734]
[1741962624467,1.04703,1910.3,1910.2,12.3734]
[1741962625568,1.04709,1910.2,1910.1,0.00786308]
[1741962625768,13.7157,1910.3,1909.7,12.6306]
[1741962625972,2.61773,1910.2,1909.7,12.6306]
[1741962626171,5.78143308,1910.4,1909.7,15.8384]
[1741962626373,2.62543308,1910.4,1909.9,3.2078]
[1741962626674,1.05486308,1910.4,1910.2,1.04709]
[1741962626968,1.04713,1910.2,1910.0,1.05503308]
[1741962627177,1.04706,1910.3,1910.1,3.2078]
[1741962627381,0.00786308,1910.4,1910.2,1.04706]
[1741962627571,1.04703,1910.3,1910.2,6.67446]
[1741962627885,1.05488308,1910.4,1910.3,1.04703]
[1741962628579,5.21585185,1926.6,1910.3,2.5]
[1741962628580,3.2078,1911.0,1910.3,2.5]
[1741962628879,2.61664,1911.0,1910.6,1.04682]
[1741962629081,1.04682,1910.7,1910.4,3.2078]
[1741962629376,1.04682,1910.7,1910.6,41.84687]
[1741962629572,11.0134,1910.9,1910.6,40.8]
[1741962629775,1.04682,1910.7,1910.6,40.8]
[1741962631073,12.06022,1910.7,1910.6,40.8]
[1741962631275,1.04682,1910.7,1910.6,41.84687]
[1741962631672,1.05466308,1910.8,1910.6,41.84683]
[1741962631871,0.00786308,1910.8,1910.7,1.04682]
[1741962632380,0.00786308,1910.8,1910.7,9.66572]
[1741962632575,0.00786308,1910.8,1910.7,20.69332]
[1741962633278,1.05462308,1910.8,1910.7,20.69332]
[1741962633475,1.05462308,1910.8,1910.7,16.4387]
[1741962633677,1.05462308,1910.8,1910.7,17.48552]
[1741962633880,1.05462308,1910.8,1910.7,11.0276]
[1741962634074,1.05462308,1910.8,1910.3,9.66592]
[1741962634075,1.04698,1910.4,1910.3,9.66592]
[1741962634382,11.5112,1910.7,1910.3,22.45789]
[1741962634575,12.55805,1910.7,1910.6,1.04687]
[1741962634972,1.04685,1910.7,1910.5,3.2078]
[1741962635171,1.05467308,1910.8,1910.7,1.04682]
[1741962635474,0.00786308,1910.8,1910.7,4.25462]
[1741962635677,0.00786308,1910.8,1910.7,1.04682]
[1741962635877,0.00786308,1910.8,1910.7,45.05462]
[1741962636082,1.05462308,1910.8,1910.7,45.05462]
[1741962636379,0.00786308,1910.8,1910.7,45.05462]
[1741962636775,1.04674,1910.9,1910.7,54.42142]
[1741962636983,29.492,1912.0,1911.2,1.04649]
[1741962636984,1.04652,1911.3,1911.2,1.04649]
[1741962637186,11.5112,1911.4,1911.1,1.04655]
[1741962637187,1.04657,1911.2,1911.1,1.04655]
[1741962637375,1.04657,1911.2,1911.1,12.28925]
[1741962637576,1.04675,1910.9,1910.7,53.6368]
[1741962637773,1.04675,1910.9,1910.8,1.04675]
[1741962637976,5.76811,1911.4,1910.8,5.82471]
[1741962638171,3.152,1911.4,1911.0,3.2078]
[1741962638377,2.61595,1911.5,1911.0,3.2078]
[1741962638582,1.04647,1911.4,1911.3,1.04645]
[1741962638883,11.2761,1911.6,1911.2,11.2427]
[1741962639072,1.04647,1911.4,1911.3,1.04645]
[1741962639271,1.04649,1911.3,1911.2,12.28924]
[1741962639683,1.04649,1911.3,1911.2,12.2892]
[1741962639881,1.04649,1911.3,1911.2,11.2427]
[1741962640581,3.2078,1911.7,1911.2,11.2427]
[1741962640884,2.6146,1912.5,1912.1,1.04602]
[1741962641183,11.4919,1912.2,1911.9,11.2024]
[1741962641388,12.53789,1912.2,1912.1,0.00786308]
[1741962641789,12.53789,1912.2,1912.1,40.80786308]
[1741962642089,11.4919,1912.2,1912.1,41.85391308]
[1741962642475,11.4919,1912.4,1912.1,40.80786308]
[1741962642676,11.4919,1912.4,1912.1,52.01026308]
[1741962642984,1.04594,1912.3,1912.2,11.2024]
[1741962643283,1.04599,1912.2,1912.1,40.80786308]
[1741962643478,12.38839,1912.2,1912.1,51.78766308]
[1741962644089,11.3424,1912.2,1912.1,52.83371308]
[1741962644292,1.04596,1912.3,1912.1,52.83371308]
[1741962644491,1.04596,1912.3,1912.2,10.9798]
[1741962644791,11.3424,1912.4,1912.1,40.80786308]
[1741962644986,12.38839,1912.2,1912.1,40.80786308]
[1741962645187,11.3424,1912.2,1912.1,41.85391308]
[1741962645382,1.04596,1912.3,1912.2,1.04599]
[1741962645583,1.04599,1912.2,1912.1,0.00786308]
[1741962645894,12.38839,1912.2,1912.1,0.00786308]
[1741962647183,1.04621,1911.8,1911.7,11.2218]
[1741962647386,1.04621,1911.8,1911.7,52.0218]
[1741962647584,1.04621,1911.8,1911.4,3.2078]
[1741962647891,10.5361,1911.9,1911.8,1.04621]
[1741962648080,11.58227,1911.9,1911.8,40.8]
[1741962648588,10.5361,1911.9,1911.8,41.84621]
[1741962648785,1.04616,1911.9,1911.8,40.8]
[1741962648981,4.25396,1911.9,1911.8,40.8]
[1741962649188,14.79006,1911.9,1911.8,40.8]
[1741962649389,11.58226,1911.9,1911.8,40.8]
[1741962651586,14.79006,1911.9,1911.8,40.8]
[1741962652090,11.58226,1911.9,1911.8,41.84621]
[1741962652488,1.05401308,1912.0,1911.8,40.8]
[1741962652690,1.05401308,1912.0,1911.9,1.04616]
[1741962652888,1.05401308,1912.0,1911.9,12.43336]
[1741962653186,0.00786308,1912.0,1911.9,12.43336]
[1741962653493,1.05396308,1912.0,1911.9,11.3872]
[1741962654092,1.04616,1911.9,1911.8,40.8]
[1741962654393,12.37736,1911.9,1911.8,40.8]
[1741962655088,11.3312,1911.9,1911.8,41.84621]
[1741962655295,11.3312,1911.9,1911.8,53.23341]
[1741962655490,0.00786308,1912.0,1911.9,1.04616]
[1741962655685,0.00786308,1912.0,1911.9,11.65396]
[1741962655885,0.00786308,1912.0,1911.9,14.86176]
[1741962656092,0.00786308,1912.0,1911.9,20.43666]
[1741962656294,12.07241,1912.4,1911.9,22.93666]
[1741962656594,11.0265,1912.4,1912.3,1.04594]
[1741962656795,1.0458,1912.6,1912.5,1.04581]
[1741962657088,3.2078,1912.7,1912.2,2.61499]
[1741962657089,1.04585,1912.5,1912.4,1.04586]
[1741962657294,11.0265,1912.9,1912.4,10.6078]
[1741962657495,1.04582,1912.6,1912.5,1.04582]
[1741962657694,1.04569,1912.8,1912.7,1.04569]
[1741962658394,1.04567,1912.8,1912.7,11.65351]
[1741962659192,1.04567,1912.8,1912.7,11.65348]
[1741962659397,11.0265,1912.9,1912.1,3.2078]
[1741962659398,2.61436,1912.7,1912.1,3.2078]
[1741962659591,1.04595,1912.3,1912.2,12.33939]
[1741962659791,13.75325,1912.6,1912.2,12.33939]
[1741962659792,1.04591,1912.4,1912.3,1.04592]
[1741962659992,1.04591,1912.4,1912.3,1.04591]
[1741962660295,1.04594,1912.3,1912.2,11.2934]
[1741962660497,11.1388,1912.3,1911.9,5.2839]
[1741962660797,1.04616,1911.9,1911.8,19.28141]
[1741962661000,1.04616,1912.0,1911.9,1.04613]
[1741962661194,1.04616,1912.0,1911.9,11.2934]
[1741962661697,12.11416,1912.0,1911.9,11.2934]
[1741962661893,2.61493,1912.3,1911.9,11.2934]
[1741962662094,11.068,1912.2,1911.9,11.2934]
[1741962662288,1.0461,1912.0,1911.9,12.33956]
[1741962662701,1.0461,1912.0,1911.9,11.2934]
[1741962663300,12.11404,1912.2,1911.9,11.2934]
[1741962663495,3.2078,1912.7,1912.1,2.61513]
[1741962663698,3.2078,1912.7,1912.2,22.73449]
[1741962663900,5.82235,1912.6,1912.2,16.9117]
[1741962664203,1.04594,1912.3,1912.2,16.9117]
[1741962664399,11.068,1912.6,1911.9,3.2078]
[1741962664590,1.04605,1912.1,1912.0,12.2929]
[1741962664801,5.75747,1912.6,1912.0,11.2468]
[1741962665106,1.04605,1912.1,1912.0,11.2468]
[1741962665293,1.04601,1912.2,1912.1,1.04603]
[1741962665498,1.04605,1912.1,1912.0,11.2468]
[1741962665798,12.34125,1912.1,1912.0,11.2468]
[1741962666299,1.04605,1912.1,1912.0,12.2929]
[1741962666499,1.04605,1912.1,1912.0,11.2468]
[1741962666701,11.2952,1912.3,1912.0,11.2468]
[1741962667004,1.04605,1912.1,1912.0,11.2468]
[1741962667403,1.04605,1912.1,1912.0,12.2929]
[1741962667708,1.046,1912.2,1912.0,11.2468]
[1741962668002,2.61429,1912.8,1912.1,5.82293]
[1741962668202,1.04591,1912.4,1912.3,1.04591]
[1741962668399,1.04585,1912.5,1912.2,11.1864]
[1741962668597,1.04583,1912.6,1912.5,1.04582]
[1741962668803,1.04583,1912.6,1912.2,19.48015]
[1741962668804,11.4247,1912.8,1912.3,9.7453]
[1741962668999,1.04576,1912.7,1912.6,4.25355]
[1741962669300,1.04576,1912.7,1912.6,12.23215]
[1741962669497,1.04576,1912.7,1912.6,12.23218]
[1741962669696,12.47041,1912.8,1912.7,1.04572]
[1741962669891,1.04571,1912.8,1912.7,1.04572]
[1741962670094,11.4247,1913.0,1912.7,11.1864]
[1741962670305,11.4247,1913.0,1912.8,1.04563]
[1741962670306,1.04564,1912.9,1912.8,1.04563]
[1741962670507,12.47029,1913.0,1912.9,1.04561]
[1741962670801,26.11851,1913.3,1913.0,1.04554]
[1741962671008,1.04555,1913.1,1913.0,1.04554]
[1741962671201,2.69232138,1913.5,1913.0,5.82166]
[1741962671202,0.07905138,1913.5,1913.0,5.82166]
[1741962671397,10.79785138,1913.5,1913.0,3.2078]
[1741962671597,0.07905138,1913.5,1913.2,3.2078]
[1741962671801,0.07905138,1913.5,1913.4,1.04534]
[1741962672400,0.07905138,1913.5,1913.4,41.84534]
[1741962672596,3.2078,1914.2,1913.4,46.5078]
[1741962672807,1.04503,1914.0,1913.7,3.2078]
[1741962673010,3.2078,1914.5,1913.9,3.2078]
[1741962673212,1.04483,1914.4,1914.1,3.2078]
[1741962673508,3.2078,1914.5,1914.4,1.04479]
[1741962673697,3.2078,1914.5,1914.2,6.5522]
[1741962673902,10.7188,1914.6,1914.3,3.2078]
[1741962674200,23.483,1914.8,1914.6,1.04467]
[1741962674201,1.04462,1914.8,1914.6,1.04467]
[1741962674504,23.483,1915.5,1914.6,1.04467]
[1741962674505,2.61039,1915.6,1914.7,3.2078]
[1741962674698,3.2078,1915.5,1914.8,5.5284]
[1741962674904,1.04451,1915.0,1914.9,40.8]
[1741962675903,12.14591,1915.0,1914.9,40.8]
[1741962676309,15.35371,1915.0,1914.9,40.8]
[1741962676610,1.04444,1915.1,1914.7,3.2078]
[1741962676810,1.04444,1915.1,1914.8,1.04454]
[1741962677015,14.4549,1915.2,1914.8,40.8]
[1741962677200,1.04449,1915.0,1914.8,41.84457]
[1741962677402,11.2471,1915.1,1914.8,40.8]
[1741962677610,1.04452,1914.9,1914.8,40.8]
[1741962677814,1.04449,1915.0,1914.8,40.8]
[1741962678015,1.04452,1914.9,1914.8,40.8]
[1741962678310,11.2471,1914.9,1914.7,3.21564232]
[1741962678513,11.2471,1914.9,1914.7,0.00784232]
[1741962678910,3.21557312,1915.1,1914.7,1.05243232]
[1741962679102,1.04454,1914.9,1914.8,40.8]
[1741962679312,12.29159,1915.0,1914.8,40.8]
[1741962679908,1.04452,1914.9,1914.8,40.8]
[1741962680109,11.2471,1915.0,1914.8,40.8]
[1741962680305,1.04452,1914.9,1914.8,40.8]
[1741962680610,11.2471,1915.0,1914.9,1.04452]
[1741962680816,0.00777312,1915.1,1914.8,40.8]
[1741962681005,0.00777312,1915.1,1914.9,3.2078]
[1741962681315,2.61022,1915.7,1914.9,3.2078]
[1741962681316,3.2078,1916.1,1914.9,11.6778]
[1741962681512,5.978,1916.7,1915.9,3.2078]
[1741962681513,3.2078,1916.6,1915.9,3.2078]
[1741962681813,1.04389,1916.1,1915.9,1.04395]
[1741962682008,3.2078,1916.3,1915.7,9.7142]
[1741962682201,3.2078,1916.3,1916.2,1.04381]
[1741962682410,3.2078,1916.5,1915.9,3.2078]
[1741962682600,1.04379,1916.3,1916.0,11.45877]
[1741962682801,3.2078,1916.5,1916.0,10.4149]
[1741962683103,1.04384,1916.2,1916.0,11.4588]
[1741962683313,5.81695,1916.5,1916.1,1.04385]
[1741962683613,1.04383,1916.2,1916.1,1.04386]
[1741962683815,1.04383,1916.2,1916.1,1.04387]
[1741962684111,1.04374,1916.4,1916.2,1.04377]
[1741962684311,3.2078,1916.5,1915.9,9.1778]
[1741962684618,1.04385,1916.2,1915.9,9.1778]
[1741962684809,1.04387,1916.1,1915.9,9.1778]
[1741962685007,2.60943,1916.3,1915.8,0.00784232]
[1741962685318,1.04395,1916.0,1915.8,0.00784232]
[1741962685511,11.4899,1916.2,1915.8,0.00784232]
[1741962685512,1.04389,1916.1,1915.8,0.00784232]
[1741962685705,12.53374,1916.2,1915.8,0.00784232]
[1741962685917,5.81695,1916.5,1915.8,0.00784232]
[1741962686117,14.04479,1916.4,1915.8,0.00784232]
[1741962686309,11.4355,1916.4,1915.8,0.00784232]
[1741962686509,3.2078,1916.2,1915.8,0.00784232]
[1741962686815,12.4794,1916.1,1915.8,0.00784232]
[1741962687012,11.4355,1916.1,1915.8,0.00784232]
[1741962687202,1.04408,1915.7,1915.6,5.3301]
[1741962687402,1.0442,1915.5,1915.4,1.04421]
[1741962687709,2.61062,1915.4,1914.7,3.2078]
[1741962688010,3.2078,1915.1,1914.9,1.0445]
[1741962688208,3.2078,1915.1,1914.9,40.8]
[1741962688406,1.04465,1914.7,1914.5,15.9896]
[1741962688606,3.2078,1914.7,1914.5,11.8109]
[1741962688802,1.04468,1914.7,1914.1,2.6124]
[1741962689012,10.5362,1914.6,1914.5,1.04474]
[1741962689315,10.5362,1914.6,1914.1,3.2078]
[1741962689511,4.17761,1914.8,1914.6,1.04467]
[1741962689699,1.04464,1914.7,1914.2,5.82790232]
[1741962689901,4.17761,1914.8,1914.6,1.04467]
[1741962690110,10.5362,1914.9,1914.8,1.04457]
[1741962690312,10.5362,1914.9,1914.6,1.04465]
[1741962690513,1.04464,1914.7,1914.5,1.04471]
[1741962690811,10.5362,1914.9,1914.4,3.2078]
[1741962691014,3.2078,1914.7,1914.2,3.21564232]
[1741962691211,3.2078,1914.3,1913.7,3.2078]
[1741962691413,5.82052,1913.9,1913.2,3.2078]
[1741962691715,1.04521,1913.7,1913.5,1.04528]
[1741962691907,3.132,1914.0,1913.2,3.2078]
[1741962692216,6.3398,1914.3,1913.6,3.2078]
[1741962692413,13.80116,1914.2,1913.4,3.2078]
[1741962692717,0.00784232,1913.8,1913.4,3.21564232]
[1741962692922,12.24190232,1913.8,1913.6,1.04519]
[1741962693412,1.04528,1913.5,1912.9,6.9017]
[1741962693612,11.1889,1913.4,1912.6,3.2078]
[1741962693816,11.1889,1913.4,1912.6,5.82218]
[1741962694008,3.2078,1913.5,1913.0,3.2078]
[1741962694211,11.1889,1913.4,1913.0,3.2078]
[1741962694405,11.1889,1913.4,1913.1,40.8]
[1741962694615,1.04545,1913.2,1913.1,40.8]
[1741962694817,12.23424,1913.4,1913.2,1.0454]
[1741962695117,0.00784232,1913.8,1913.3,3.2078]
[1741962695310,0.00784232,1913.8,1913.7,1.04517]
[1741962695508,3.21564232,1913.8,1913.3,3.2078]
[1741962695703,10.7136,1913.7,1913.2,10.2509]
[1741962695910,10.7136,1913.7,1913.2,10.3267]
[1741962696109,0.00784232,1913.8,1913.4,3.2078]
[1741962696612,11.76656232,1913.8,1913.6,1.0452]
[1741962696817,11.76656232,1913.8,1913.5,1.04525]
[1741962697014,10.72144232,1913.8,1913.7,1.04517]
[1741962697817,10.72144232,1913.8,1913.6,3.2078]
[1741962698012,11.76658232,1913.8,1913.6,1.04521]
[1741962698212,11.76658232,1913.8,1913.6,4.25301]
[1741962698415,10.72144232,1913.8,1913.6,3.2078]
[1741962698715,0.00784232,1913.8,1913.7,1.04517]
[1741962699218,11.1571,1914.2,1914.0,1.04501]
[1741962699418,3.2078,1914.3,1913.8,3.2078]
[1741962699717,12.20192,1914.4,1914.2,1.0449]
[1741962699910,11.1571,1914.4,1914.3,1.04485]
[1741962700109,11.1571,1914.4,1914.2,1.04488]
[1741962700304,6.3398,1914.6,1914.2,0.00784232]
[1741962700305,0.00784232,1914.5,1914.2,0.00784232]
[1741962700517,1.04485,1914.3,1914.2,0.00784232]
[1741962700712,6.3398,1914.4,1913.7,3.2078]
[1741962700916,1.04499,1914.1,1913.7,3.2078]
[1741962701219,10.8296,1914.3,1914.0,1.04498]
[1741962701519,10.8296,1914.3,1913.7,3.2078]
[1741962701520,10.8296,1914.3,1913.7,5.82069]
[1741962701714,10.8296,1914.3,1914.0,3.2078]
[1741962701904,10.8296,1914.3,1914.2,1.0449]
[1741962702108,11.87448,1914.3,1914.1,1.04494]
[1741962702308,1.0449,1914.2,1914.1,1.04496]
[1741962702504,10.8296,1914.3,1914.2,1.0449]
[1741962702812,9.643,1915.3,1914.2,43.41225]
[1741962703011,10.8296,1914.9,1914.8,1.04457]
[1741962703311,1.04457,1914.8,1914.7,10.9815]
[1741962703508,10.8296,1914.9,1914.4,3.2078]
[1741962703713,10.8296,1914.7,1914.6,1.04466]
[1741962704015,10.8296,1914.7,1914.6,1.04468]
[1741962704210,5.81881,1915.2,1914.7,1.04463]
[1741962704211,0.00784232,1914.8,1914.7,1.04463]
[1741962704606,2.61052,1915.5,1914.7,2.5]
[1741962704819,3.2078,1915.8,1914.8,3.2078]
[1741962705021,1.04426,1915.4,1915.3,1.04427]
[1741962705219,1.04432,1915.3,1915.2,1.04433]
[1741962705417,3.2078,1915.5,1915.0,3.2078]
[1741962705616,10.8711,1915.4,1915.2,1.04434]
[1741962705813,0.00784232,1915.4,1915.3,1.0443]
[1741962706320,1.04405,1915.8,1915.3,5.11076]
[1741962706513,3.2078,1916.0,1915.4,3.2078]
[1741962706819,10.8711,1916.1,1915.6,3.2078]
[1741962707026,10.8711,1915.9,1915.6,3.2078]
[1741962707322,1.04417,1915.6,1915.4,3.2078]
[1741962707521,1.04408,1915.7,1915.6,0.00784232]
[1741962707825,1.04434,1915.3,1914.9,15.651]
[1741962708019,1.04438,1915.2,1914.9,15.651]
[1741962708221,11.69888,1915.2,1915.0,40.8]
[1741962708515,0.00784232,1915.9,1915.0,40.8]
[1741962708821,10.6545,1915.7,1915.3,0.00784232]
[1741962709017,1.04424,1915.5,1915.3,1.05209232]
[1741962709217,1.04416,1915.6,1915.3,0.00784232]
[1741962709422,3.21564232,1915.9,1915.3,3.21564232]
[1741962709624,4.25966232,1915.9,1915.7,1.04408]
[1741962709820,1.05181232,1915.9,1915.8,1.04403]
[1741962710115,0.00784232,1915.9,1915.8,1.04403]
[1741962710323,0.00784232,1915.9,1915.5,5.81827]
[1741962710518,10.50144232,1915.9,1915.4,2.61062]
[1741962710819,1.04408,1915.7,1915.6,1.0441]
[1741962711024,1.04414,1915.6,1915.5,1.04416]
[1741962711214,3.2078,1915.8,1915.3,3.21564232]
[1741962711524,13.7014,1915.8,1915.3,3.21564232]
[1741962711710,1.04411,1915.7,1915.6,1.04414]
[1741962711912,1.04411,1915.7,1915.3,3.21564232]
[1741962711913,13.7014,1915.8,1915.3,3.21564232]
[1741962712113,1.04418,1915.6,1915.3,3.21564232]
[1741962712314,1.04418,1915.6,1915.4,1.0442]
[1741962712515,1.04423,1915.5,1915.4,1.04423]
[1741962712918,0.00784232,1915.9,1915.5,1.04414]
[1741962713123,3.2078,1915.8,1915.3,3.21564232]
[1741962713323,1.04418,1915.6,1915.5,1.04417]
[1741962713523,1.04421,1915.5,1915.4,1.04422]
[1741962713717,11.74841,1915.5,1915.4,1.04422]
[1741962713915,10.7042,1915.5,1915.4,1.04425]
[1741962714120,1.04413,1915.7,1915.3,3.21564232]
[1741962714321,10.7042,1915.7,1915.4,1.04421]
[1741962714622,10.7042,1915.7,1915.3,0.00784232]
[1741962714818,1.04421,1915.5,1915.4,1.04421]
[1741962715225,10.7042,1915.7,1915.6,1.04414]
[1741962715929,0.00784232,1915.9,1915.5,1.04419]
[1741962716218,0.00784232,1915.9,1915.8,1.04403]
[1741962716826,1.04406,1915.8,1915.7,1.04404]
[1741962717025,1.04414,1915.6,1915.5,7.1086]
[1741962717326,13.22680232,1915.9,1915.3,6.34364232]
[1741962717327,10.609,1915.7,1915.3,6.34364232]
[1741962717620,1.04425,1915.5,1915.4,1.04422]
[1741962717820,1.04425,1915.4,1915.3,7.38793232]
[1741962718028,1.04425,1915.4,1915.3,1.05213232]
[1741962718324,1.04425,1915.4,1915.3,0.00784232]
[1741962718523,2.5,1915.4,1915.0,40.8]
[1741962718829,2.61142,1914.9,1914.4,7.1372]
[1741962719024,10.609,1914.8,1914.4,7.1372]
[1741962719219,1.0447,1914.6,1914.5,1.04469]
[1741962719420,1.04483,1914.4,1914.3,1.04484]
[1741962719615,11.79398,1914.5,1914.4,1.04479]
[1741962719821,3.2078,1914.9,1914.4,41.84477]
[1741962720119,10.75704232,1914.6,1914.4,40.8]
[1741962720315,4.25254,1914.5,1914.4,40.8]
[1741962720519,1.04474,1914.5,1914.4,40.8]
[1741962720715,10.75704232,1914.6,1914.4,40.8]
[1741962721327,0.00784232,1914.6,1914.5,1.04474]
[1741962721527,1.05252232,1914.6,1914.5,1.04474]
[1741962721719,0.00784232,1914.6,1914.4,40.8]
[1741962722030,0.00784232,1914.6,1914.5,1.04474]
[1741962722326,1.04474,1914.5,1914.4,40.8]
[1741962722526,15.68614,1914.5,1914.4,40.8]
[1741962725226,0.00784232,1914.6,1914.5,1.04474]
[1741962725626,11.1185,1915.0,1914.9,1.04452]
[1741962725826,3.2078,1915.1,1915.0,1.04446]
[1741962726130,3.2078,1915.1,1915.0,41.84446]
[1741962726332,1.04419,1915.5,1915.4,1.04422]
[1741962726523,1.04425,1915.4,1915.3,1.04427]
[1741962726827,1.0443,1915.3,1915.2,10.66734232]
[1741962727020,12.1628,1915.3,1915.2,0.00784232]
[1741962727225,1.04441,1915.1,1915.0,40.8]
[1741962727523,1.04476,1914.5,1914.4,1.04479]
[1741962727823,1.04464,1914.7,1914.4,40.8]
[1741962728030,17.8248,1915.0,1914.7,1.0446]
[1741962728235,17.8248,1915.0,1914.5,13.8673]
[1741962729022,0.00784232,1915.0,1914.8,11.142]
[1741962729218,0.00784232,1915.0,1914.9,1.04452]
[1741962729422,0.00784232,1915.0,1914.9,4.25232]
[1741962729625,1.04419,1915.5,1915.4,1.0442]
[1741962729821,1.0443,1915.3,1915.2,11.142]
[1741962730029,1.0443,1915.3,1915.2,52.98636]
[1741962730219,12.45578,1915.4,1915.3,1.0443]
[1741962730421,1.0443,1915.3,1915.2,52.98633]
[1741962731131,12.46363232,1915.4,1915.3,1.0443]
[1741962731330,1.0443,1915.3,1915.2,52.98631]
[1741962731532,1.0443,1915.3,1915.2,40.8]
[1741962731726,11.41934232,1915.4,1915.2,40.8]
[1741962732025,11.41934232,1915.4,1915.3,1.0443]
[1741962732231,11.41934232,1915.4,1915.3,12.3652]
[1741962732434,12.46359232,1915.4,1915.3,11.3209]
[1741962732623,11.41934232,1915.4,1915.3,12.3652]
[1741962732827,0.00784232,1915.4,1915.3,12.3652]
[1741962733734,1.05209232,1915.4,1915.3,11.3209]
[1741962734028,1.05209232,1915.4,1915.2,48.92112]
[1741962734029,1.0443,1915.3,1915.2,40.8]
[1741962734235,11.93572,1915.3,1915.2,1.04436]
[1741962734435,10.8914,1915.3,1915.1,1.04438]
[1741962734635,10.8914,1915.3,1915.0,11.3209]
[1741962734838,10.8914,1915.3,1915.0,12.36535]
[1741962734839,1.04441,1915.1,1915.0,12.36535]
[1741962735025,2.61108,1915.1,1914.7,1.05245232]
[1741962735229,1.04441,1915.1,1915.0,40.8]
[1741962735432,1.04457,1914.8,1914.7,0.00784232]
[1741962735731,1.04448,1915.0,1914.9,1.04447]
[1741962735931,0.00784232,1915.4,1915.1,1.04438]
[1741962736134,0.00784232,1915.4,1915.0,11.2995]
[1741962736335,1.05211232,1915.4,1915.3,1.0443]
[1741962736537,1.05209232,1915.4,1915.0,13.91055]
[1741962736834,0.00784232,1915.4,1915.3,1.0443]
[1741962737039,1.0443,1915.3,1915.2,12.34383]
[1741962737243,1.0443,1915.3,1915.2,11.2995]
[1741962737740,0.00784232,1915.4,1915.3,1.0443]
[1741962738242,1.05212232,1915.4,1915.3,1.0443]
[1741962738442,0.00784232,1915.4,1915.3,1.0443]
[1741962739242,1.0443,1915.3,1915.2,12.34383]
[1741962739446,1.05211232,1915.4,1915.3,1.0443]
[1741962739637,1.0443,1915.3,1915.2,12.34382]
[1741962739837,1.05213232,1915.4,1915.3,1.0443]
[1741962740137,0.00784232,1915.4,1915.3,1.0443]
[1741962740441,26.6608,1915.9,1915.4,2.61053]
[1741962740739,26.6608,1915.9,1915.5,13.91578]
[1741962740931,3.2078,1915.9,1915.5,13.91578]
[1741962741136,3.2078,1915.9,1915.5,11.3054]
[1741962741335,1.04405,1915.8,1915.7,1.04405]
[1741962741532,6.8309,1916.2,1915.6,2.61035]
[1741962741841,0.00784232,1915.9,1915.7,0.00784232]
[1741962742147,1.04403,1915.8,1915.7,0.00784232]
[1741962742838,4.25183,1915.8,1915.7,40.80784232]
[1741962743037,1.04403,1915.8,1915.7,40.80784232]
[1741962743340,0.00784232,1915.9,1915.8,1.04403]
[1741962743839,1.05181232,1915.9,1915.8,1.04403]
[1741962744043,7.1258,1916.5,1915.7,44.01564232]
[1741962744238,1.04366,1916.5,1916.4,1.04367]
[1741962744548,3.2078,1917.0,1916.3,3.2078]
[1741962744735,0.00412668,1918.0,1916.9,3.2078]
[1741962744736,3.2078,1917.6,1916.9,3.2078]
[1741962744935,3.2078,1917.6,1917.0,10.0903]
[1741962745137,1.04313,1917.5,1917.1,1.04327]
[1741962745345,3.2078,1917.3,1917.1,0.00784232]
[1741962745550,3.2078,1917.5,1917.1,0.00784232]
[1741962745939,1.04327,1917.2,1917.1,0.00784232]
[1741962746147,3.2078,1917.3,1917.1,0.00784232]
[1741962746349,4.25104,1917.3,1917.1,0.00784232]
[1741962746547,1.04318,1917.4,1917.1,0.00784232]
[1741962746851,1.04321,1917.3,1917.2,40.8]
[1741962747151,4.16621,1917.3,1917.2,40.8]
[1741962747353,11.601,1917.3,1915.9,3.2078]
[1741962747555,3.2078,1916.4,1915.9,3.2078]
[1741962747848,3.2078,1916.3,1915.8,3.2078]
[1741962748247,1.04391,1916.1,1915.9,1.04396]
[1741962748459,1.04378,1916.3,1916.1,1.04384]
[1741962748643,3.21564232,1916.2,1915.8,3.21564232]
[1741962748951,1.04388,1916.1,1915.9,1.04394]
[1741962749155,3.21564232,1916.2,1915.9,1.04393]
[1741962749449,3.2078,1916.1,1915.9,1.04396]
[1741962749652,0.00784232,1916.2,1916.1,1.04387]
[1741962750044,1.04354,1916.7,1916.5,1.0436]
[1741962750248,3.2078,1916.8,1916.3,6.3298]
[1741962750453,1.04355,1916.7,1916.5,1.04362]
[1741962750642,1.04355,1916.7,1916.6,40.8]
[1741962750844,3.2078,1917.1,1916.6,40.8]
[1741962751045,3.2078,1917.1,1916.8,1.04347]
[1741962751251,3.2078,1917.1,1916.6,40.8]
[1741962751453,3.2078,1917.1,1916.7,1.04352]
[1741962751650,1.04342,1917.0,1916.8,1.04347]
[1741962751955,1.04345,1916.9,1916.6,44.0078]
[1741962752256,1.04344,1916.9,1916.7,1.04354]
[1741962752457,7.8569,1916.8,1916.7,8.98664]
[1741962752657,1.04356,1916.7,1916.4,11.1509]